fUSD/lending_fUSD_20241222
["ID","MTS","AMOUNT","RATE_DAILY","PERIOD"]
[346321267,1734889843233,-500.0,0.00019178,2]
[346321268,1734889843242,-500.0,0.00019178,2]
[346321269,1734889843253,-500.0,0.00019178,2]
[346321270,1734889843262,-500.0,0.00019178,2]
[346321271,1734889843272,-500.0,0.00019178,2]
[346321272,1734889843282,-500.0,0.00019178,2]
[346321273,1734889843471,-500.0,0.00019178,2]
[346321274,1734889843482,-500.0,0.00019178,2]
[346321275,1734889843491,-500.0,0.00019178,2]
[346321276,1734889843500,-7209.76,0.00019178,2]
[346321277,1734889843509,-501.00408187,0.00019178,2]
[346321278,1734889843518,-500.0,0.00019178,2]
[346321279,1734889843527,-500.0,0.00019178,2]
[346321280,1734889843536,-500.0,0.00019178,2]
[346321281,1734889843546,-500.0,0.00019178,2]
[346321282,1734889843555,-500.0,0.00019178,2]
[346321283,1734889843564,-647.13,0.00019178,2]
[346321284,1734889843573,-500.0,0.00019178,2]
[346321285,1734889843582,-500.0,0.00019178,2]
[346321286,1734889843591,-500.0,0.00019178,2]
[346321287,1734889843600,-500.0,0.00019178,2]
[346321288,1734889843610,-500.0,0.00019178,2]
[346321289,1734889843619,-520.02,0.00019178,2]
[346321290,1734889843628,-319.94488214,0.00019178,2]
[346321291,1734889843637,-1596.07,0.00019178,2]
[346321292,1734889843647,-500.0,0.00019178,2]
[346321293,1734889843656,-500.0,0.00019178,2]
[346321294,1734889843665,-500.0,0.00019178,2]
[346321295,1734889843674,-500.0,0.00019178,2]
[346321296,1734889843683,-500.0,0.00019178,2]
[346321297,1734889843692,-395.36426197,0.00019178,2]
[346321298,1734889843702,-500.0,0.00019178,2]
[346321299,1734889843711,-500.0,0.00019178,2]
[346321300,1734889843720,-500.0,0.00019178,2]
[346321301,1734889843729,-500.0,0.00019178,2]
[346321302,1734889843738,-500.0,0.00019178,2]
[346321303,1734889843747,-503.68700931,0.00019178,2]
[346321304,1734889843756,-500.0,0.00019178,2]
[346321305,1734889843765,-500.0,0.00019178,2]
[346321306,1734889843775,-500.0,0.00019178,2]
[346321307,1734889843784,-500.0,0.00019178,2]
[346321308,1734889843793,-500.0,0.00019178,2]
[346321309,1734889843802,-500.0,0.00019178,2]
[346321310,1734889843812,-500.0,0.00019178,2]
[346321311,1734889843823,-500.0,0.00019178,2]
[346321312,1734889843832,-500.0,0.00019178,2]
[346321313,1734889843841,-500.0,0.00019178,2]
[346321314,1734889843850,-500.0,0.00019178,2]
[346321315,1734889843860,-500.0,0.00019178,2]
[346321316,1734889843870,-500.0,0.00019178,2]
[346321317,1734889843879,-500.0,0.00019178,2]
[346321318,1734889843888,-500.0,0.00019178,2]
[346321319,1734889843897,-500.0,0.00019178,2]
[346321320,1734889843907,-500.0,0.00019178,2]
[346321321,1734889843917,-500.0,0.00019178,2]
[346321322,1734889843927,-500.0,0.00019178,2]
[346321323,1734889843936,-500.0,0.00019178,2]
[346321324,1734889843946,-1300.34,0.00019178,2]
[346321325,1734889843955,-500.0,0.00019178,2]
[346321326,1734889843965,-500.0,0.00019178,2]
[346321327,1734889843974,-500.0,0.00019178,2]
[346321328,1734889843983,-549.71,0.00019178,2]
[346321329,1734889843992,-500.0,0.00019178,2]
[346321330,1734889844001,-500.0,0.00019178,2]
[346321331,1734889844010,-683.06,0.00019178,2]
[346321332,1734889844019,-500.0,0.00019178,2]
[346321333,1734889844028,-500.0,0.00019178,2]
[346321334,1734889844037,-500.0,0.00019178,2]
[346321335,1734889844046,-500.0,0.00019178,2]
[346321336,1734889844055,-703.14,0.00019178,2]
[346321337,1734889844064,-500.0,0.00019178,2]
[346321338,1734889844074,-585.34,0.00019178,2]
[346321339,1734889844083,-500.0,0.00019178,2]
[346321340,1734889844092,-542.3,0.00019178,2]
[346321341,1734889844101,-1626.71,0.00019178,2]
[346321342,1734889844110,-500.0,0.00019178,2]
[346321343,1734889844119,-500.0,0.00019178,2]
[346321344,1734889844129,-500.0,0.00019178,2]
[346321345,1734889844138,-500.0,0.00019178,2]
[346321346,1734889844147,-581.7,0.00019178,2]
[346321347,1734889844156,-500.0,0.00019178,2]
[346321348,1734889844166,-500.0,0.00019178,2]
[346321349,1734889844175,-528.74,0.00019178,2]
[346321350,1734889844184,-500.0,0.00019178,2]
[346321351,1734889844193,-500.0,0.00019178,2]
[346321352,1734889844204,-2111.29,0.00019178,2]
[346321353,1734889844214,-500.0,0.00019178,2]
[346321354,1734889844224,-500.0,0.00019178,2]
[346321355,1734889844235,-500.0,0.00019178,2]
[346321356,1734889844247,-620.36,0.00019178,2]
[346321357,1734889844257,-500.0,0.00019178,2]
[346321358,1734889844270,-500.0,0.00019178,2]
[346321359,1734889844288,-500.0,0.00019178,2]
[346321360,1734889844303,-500.0,0.00019178,2]
[346321361,1734889844313,-3135.84,0.00019178,2]
[346321362,1734889844323,-500.0,0.00019178,2]
[346321363,1734889844333,-500.0,0.00019178,2]
[346321364,1734889844345,-500.0,0.00019178,2]
[346321365,1734889844356,-552.1,0.00019178,2]
[346321366,1734889844365,-1420.18,0.00019178,2]
[346321367,1734889844374,-500.0,0.00019178,2]
[346321368,1734889844384,-556.99,0.00019178,2]
[346321369,1734889844393,-500.0,0.00019178,2]
[346321370,1734889844402,-500.0,0.00019178,2]
[346321371,1734889844411,-500.0,0.00019178,2]
[346321372,1734889844421,-500.0,0.00019178,2]
[346321373,1734889844430,-500.0,0.00019178,2]
[346321374,1734889844440,-557.01638394,0.00019178,2]
[346321375,1734889844450,-506.67552571,0.00019178,2]
[346321376,1734889844460,-1008.24,0.00019178,2]
[346321377,1734889844469,-500.0,0.00019178,2]
[346321378,1734889844479,-675.53,0.00019178,2]
[346321379,1734889844488,-500.0,0.00019178,2]
[346321380,1734889844497,-500.0,0.00019178,2]
[346321381,1734889844507,-282.27174502,0.00019178,2]
[346321382,1734889844516,-500.0,0.00019178,2]
[346321383,1734889844525,-7110.01,0.00019178,2]
[346321384,1734889844534,-7110.01,0.00019178,2]
[346321385,1734889844543,-500.0,0.00019178,2]
[346321386,1734889844553,-500.0,0.00019178,2]
[346321387,1734889844563,-8995.9951639,0.00019178,2]
[346321388,1734889844595,-7618.07795771,0.00019178,2]
[346321389,1734889844607,-948.171807,0.00019178,2]
[346321390,1734889844623,-686.24633394,0.00019178,2]
[346321391,1734889844993,-300.0,0.00019178,2]
[346321392,1734889845008,-931.13278959,0.00019178,2]
[346321393,1734889845022,-370.06594786,0.00019178,2]
[346321394,1734889845034,-148.00024996,0.00019178,2]
[346321395,1734889845045,-351.99975004,0.00019178,2]
[346321396,1734889845054,-485.4199812,0.00019178,2]
[346321397,1734889845069,-14.5800188,0.00019178,2]
[346321398,1734889845079,-500.0,0.00019178,2]
[346321399,1734889845088,-711.86,0.00019178,2]
[346321400,1734889845097,-500.0,0.00019178,2]
[346321401,1734889845107,-500.0,0.00019178,2]
[346321402,1734889845116,-500.0,0.00019178,2]
[346321403,1734889845125,-500.0,0.00019178,2]
[346321404,1734889845134,-500.0,0.00019178,2]
[346321405,1734889845143,-921.6,0.00019178,2]
[346321406,1734889845152,-500.0,0.00019178,2]
[346321407,1734889845162,-593.07922512,0.00019178,2]
[346321408,1734889845172,-423.25418656,0.00019178,2]
[346321409,1734889845182,-500.0,0.00019178,2]
[346321410,1734889845191,-500.0,0.00019178,2]
[346321411,1734889845200,-500.0,0.00019178,2]
[346321412,1734889845213,-500.0,0.00019178,2]
[346321413,1734889845222,-500.0,0.00019178,2]
[346321414,1734889845232,-500.0,0.00019178,2]
[346321415,1734889845241,-511.50598421,0.00019178,2]
[346321416,1734889845252,-940.89,0.00019178,2]
[346321417,1734889845261,-500.0,0.00019178,2]
[346321418,1734889845270,-500.0,0.00019178,2]
[346321419,1734889845280,-500.0,0.00019178,2]
[346321420,1734889845289,-1094.31,0.00019178,2]
[346321421,1734889845299,-3635.47,0.00019178,2]
[346321423,1734889845308,-27064.92,0.00019178,2]
[346321424,1734889845317,-500.0,0.00019178,2]
[346321426,1734889845326,-500.0,0.00019178,2]
[346321427,1734889845335,-500.0,0.00019178,2]
[346321428,1734889845344,-500.0,0.00019178,2]
[346321429,1734889845353,-500.0,0.00019178,2]
[346321430,1734889845362,-501.15122461,0.00019178,2]
[346321431,1734889845372,-500.0,0.00019178,2]
[346321432,1734889845381,-501.05226153,0.00019178,2]
[346321433,1734889845390,-500.0,0.00019178,2]
[346321434,1734889845400,-500.0,0.00019178,2]
[346321435,1734889845409,-500.0,0.00019178,2]
[346321436,1734889845418,-502.31983226,0.00019178,2]
[346321437,1734889845428,-500.0,0.00019178,2]
[346321439,1734889845437,-4731.06,0.00019178,2]
[346321441,1734889845447,-1177.1,0.00019178,2]
[346321442,1734889845456,-500.0,0.00019178,2]
[346321443,1734889845465,-500.0,0.00019178,2]
[346321444,1734889845475,-500.0,0.00019178,2]
[346321445,1734889845484,-500.0,0.00019178,2]
[346321446,1734889845493,-500.0,0.00019178,2]
[346321447,1734889845502,-500.0,0.00019178,2]
[346321448,1734889845511,-500.0,0.00019178,2]
[346321449,1734889845520,-500.0,0.00019178,2]
[346321450,1734889845529,-500.78228797,0.00019178,2]
[346321451,1734889845539,-500.0,0.00019178,2]
[346321452,1734889845548,-1038.11,0.00019178,2]
[346321453,1734889845557,-500.0,0.00019178,2]
[346321454,1734889845566,-4533.53,0.00019178,2]
[346321455,1734889845576,-500.0,0.00019178,2]
[346321456,1734889845585,-500.0,0.00019178,2]
[346321457,1734889845594,-500.0,0.00019178,2]
[346321458,1734889845603,-500.0,0.00019178,2]
[346321459,1734889845612,-500.0,0.00019178,2]
[346321460,1734889845622,-500.0,0.00019178,2]
[346321461,1734889845631,-500.0,0.00019178,2]
[346321462,1734889845641,-500.0,0.00019178,2]
[346321463,1734889845650,-500.0,0.00019178,2]
[346321464,1734889845659,-500.0,0.00019178,2]
[346321465,1734889845668,-2481.56,0.00019178,2]
[346321466,1734889845677,-2314.83,0.00019178,2]
[346321467,1734889845686,-500.0,0.00019178,2]
[346321468,1734889845695,-500.0,0.00019178,2]
[346321469,1734889845705,-500.0,0.00019178,2]
[346321470,1734889845715,-500.0,0.00019178,2]
[346321471,1734889845726,-500.0,0.00019178,2]
[346321472,1734889845737,-500.0,0.00019178,2]
[346321473,1734889845746,-312.69867833,0.00019178,2]
[346321474,1734889845755,-45840.2,0.00019178,2]
[346321475,1734889845764,-500.0,0.00019178,2]
[346321476,1734889845774,-500.0,0.00019178,2]
[346321477,1734889845783,-500.0,0.00019178,2]
[346321478,1734889845795,-500.0,0.00019178,2]
[346321479,1734889845804,-5253.18,0.00019178,2]
[346321480,1734889845814,-500.0,0.00019178,2]
[346321481,1734889845825,-500.0,0.00019178,2]
[346321482,1734889845835,-649.03,0.00019178,2]
[346321483,1734889845844,-900.77,0.00019178,2]
[346321484,1734889845854,-500.0,0.00019178,2]
[346321485,1734889845864,-500.0,0.00019178,2]
[346321486,1734889845873,-12531.03,0.00019178,2]
[346321487,1734889845882,-500.0,0.00019178,2]
[346321488,1734889845891,-500.0,0.00019178,2]
[346321489,1734889845900,-500.0,0.00019178,2]
[346321490,1734889845909,-840.51,0.00019178,2]
[346321491,1734889845917,-500.0,0.00019178,2]
[346321492,1734889845927,-500.0,0.00019178,2]
[346321493,1734889845936,-500.0,0.00019178,2]
[346321494,1734889845945,-501.28776844,0.00019178,2]
[346321495,1734889845954,-759.68,0.00019178,2]
[346321496,1734889845963,-500.0,0.00019178,2]
[346321497,1734889845972,-500.0,0.00019178,2]
[346321498,1734889845981,-500.0,0.00019178,2]
[346321499,1734889845990,-1413.03,0.00019178,2]
[346321501,1734889845999,-500.0,0.00019178,2]
[346321503,1734889846009,-500.0,0.00019178,2]
[346321505,1734889846018,-500.0,0.00019178,2]
[346321507,1734889846026,-1944.86,0.00019178,2]
[346321509,1734889846035,-500.0,0.00019178,2]
[346321511,1734889846044,-1992.42,0.00019178,2]
[346321512,1734889846054,-1159.2,0.00019178,2]
[346321513,1734889846063,-8748.51,0.00019178,2]
[346321514,1734889846072,-500.0,0.00019178,2]
[346321515,1734889846081,-500.0,0.00019178,2]
[346321516,1734889846090,-500.0,0.00019178,2]
[346321517,1734889846099,-14078.99,0.00019178,2]
[346321518,1734889846108,-500.0,0.00019178,2]
[346321520,1734889846117,-747.85,0.00019178,2]
[346321522,1734889846126,-1186.9,0.00019178,2]
[346321524,1734889846135,-1338.27,0.00019178,2]
[346321526,1734889846144,-500.0,0.00019178,2]
[346321528,1734889846153,-500.0,0.00019178,2]
[346321530,1734889846162,-500.0,0.00019178,2]
[346321532,1734889846171,-533.46,0.00019178,2]
[346321534,1734889846180,-500.0,0.00019178,2]
[346321536,1734889846189,-5504.34,0.00019178,2]
[346321537,1734889846197,-500.0,0.00019178,2]
[346321539,1734889846211,-500.0,0.00019178,2]
[346321541,1734889846220,-500.0,0.00019178,2]
[346321543,1734889846229,-500.0,0.00019178,2]
[346321545,1734889846238,-500.0,0.00019178,2]
[346321548,1734889846247,-500.0,0.00019178,2]
[346321550,1734889846256,-500.0,0.00019178,2]
[346321551,1734889846265,-3780.47,0.00019178,2]
[346321553,1734889846274,-2657.97,0.00019178,2]
[346321556,1734889846287,-500.0,0.00019178,2]
[346321558,1734889846298,-500.0,0.00019178,2]
[346321560,1734889846307,-500.0,0.00019178,2]
[346321562,1734889846316,-500.0,0.00019178,2]
[346321564,1734889846325,-500.0,0.00019178,2]
[346321566,1734889846334,-500.0,0.00019178,2]
[346321568,1734889846343,-500.0,0.00019178,2]
[346321570,1734889846352,-500.0,0.00019178,2]
[346321572,1734889846362,-1018.33,0.00019178,2]
[346321573,1734889846371,-500.0,0.00019178,2]
[346321575,1734889846380,-500.0,0.00019178,2]
[346321577,1734889846389,-3417.69,0.00019178,2]
[346321579,1734889846398,-500.0,0.00019178,2]
[346321581,1734889846407,-500.0,0.00019178,2]
[346321583,1734889846416,-500.0,0.00019178,2]
[346321585,1734889846426,-500.0,0.00019178,2]
[346321587,1734889846435,-500.0,0.00019178,2]
[346321589,1734889846444,-500.0,0.00019178,2]
[346321591,1734889846453,-500.0,0.00019178,2]
[346321593,1734889846462,-311.1122005,0.00019178,2]
[346321595,1734889846471,-500.0,0.00019178,2]
[346321597,1734889846480,-500.0,0.00019178,2]
[346321599,1734889846489,-500.0,0.00019178,2]
[346321601,1734889846498,-4709.81,0.00019178,2]
[346321603,1734889846507,-500.0,0.00019178,2]
[346321605,1734889846516,-500.0,0.00019178,2]
[346321607,1734889846525,-500.0,0.00019178,2]
[346321609,1734889846534,-590.9,0.00019178,2]
[346321611,1734889846542,-500.0,0.00019178,2]
[346321613,1734889846551,-500.0,0.00019178,2]
[346321615,1734889846559,-3081.06,0.00019178,2]
[346321617,1734889846568,-500.0,0.00019178,2]
[346321619,1734889846579,-500.0,0.00019178,2]
[346321621,1734889846588,-1618.92,0.00019178,2]
[346321623,1734889846597,-500.0,0.00019178,2]
[346321625,1734889846606,-2335.59,0.00019178,2]
[346321627,1734889846615,-500.0,0.00019178,2]
[346321629,1734889846624,-6050.62,0.00019178,2]
[346321631,1734889846633,-4912.61,0.00019178,2]
[346321633,1734889846643,-500.0,0.00019178,2]
[346321635,1734889846651,-500.0,0.00019178,2]
[346321637,1734889846660,-500.0,0.00019178,2]
[346321639,1734889846669,-500.0,0.00019178,2]
[346321641,1734889846679,-1871.76,0.00019178,2]
[346321643,1734889846688,-2288.66,0.00019178,2]
[346321645,1734889846697,-500.0,0.00019178,2]
[346321646,1734889846706,-500.0,0.00019178,2]
[346321648,1734889846716,-500.0,0.00019178,2]
[346321650,1734889846725,-1060.55,0.00019178,2]
[346321652,1734889846734,-512.82,0.00019178,2]
[346321655,1734889846744,-1831.13,0.00019178,2]
[346321657,1734889846753,-500.0,0.00019178,2]
[346321659,1734889846762,-500.0,0.00019178,2]
[346321661,1734889846772,-500.0,0.00019178,2]
[346321663,1734889846781,-500.0,0.00019178,2]
[346321664,1734889846791,-509.7051239,0.00019178,2]
[346321666,1734889846800,-500.0,0.00019178,2]
[346321668,1734889846809,-500.0,0.00019178,2]
[346321670,1734889846818,-504.26676773,0.00019178,2]
[346321672,1734889846827,-500.0,0.00019178,2]
[346321675,1734889846837,-18731.94,0.00019178,2]
[346321677,1734889846846,-506.31643346,0.00019178,2]
[346321678,1734889846855,-500.0,0.00019178,2]
[346321681,1734889846864,-15232.26,0.00019178,2]
[346321683,1734889846874,-500.0,0.00019178,2]
[346321685,1734889846884,-216.32191878,0.00019178,2]
[346321686,1734889846893,-500.0,0.00019178,2]
[346321688,1734889846902,-222.72722053,0.00019178,2]
[346321691,1734889846917,-1996.23677394,0.00019178,2]
[346321693,1734889846928,-1206.98600553,0.00019178,2]
[346321695,1734889846937,-500.0,0.00019178,2]
[346321697,1734889846947,-500.0,0.00019178,2]
[346321699,1734889846956,-517.98,0.00019178,2]
[346321701,1734889846965,-500.0,0.00019178,2]
[346321703,1734889846974,-500.0,0.00019178,2]
[346321705,1734889846983,-500.0,0.00019178,2]
[346321707,1734889846992,-500.0,0.00019178,2]
[346321709,1734889847001,-835.84,0.00019178,2]
[346321711,1734889847011,-500.0,0.00019178,2]
[346321713,1734889847020,-500.0,0.00019178,2]
[346321715,1734889847029,-55.07751627,0.00019178,2]
[346321717,1734889847040,-444.92248373,0.00019178,2]
[346321719,1734889847050,-500.0,0.00019178,2]
[346321721,1734889847060,-500.0,0.00019178,2]
[346321723,1734889847068,-500.0,0.00019178,2]
[346321725,1734889847077,-500.0,0.00019178,2]
[346321744,1734889847086,-500.0,0.00019178,2]
[346321747,1734889847263,-500.0,0.00019178,2]
[346321748,1734889847272,-500.0,0.00019178,2]
[346321751,1734889847283,-508.41,0.00019178,2]
[346321752,1734889847293,-500.0,0.00019178,2]
[346321754,1734889847302,-485.0,0.00019178,2]
[346321756,1734889847312,-500.0,0.00019178,2]
[346321758,1734889847321,-500.0,0.00019178,2]
[346321760,1734889847330,-500.0,0.00019178,2]
[346321762,1734889847339,-500.0,0.00019178,2]
[346321764,1734889847350,-505.02225988,0.00019178,2]
[346321766,1734889847359,-500.0,0.00019178,2]
[346321768,1734889847368,-500.0,0.00019178,2]
[346321770,1734889847378,-500.0,0.00019178,2]
[346321772,1734889847387,-2044.34,0.00019178,2]
[346321774,1734889847396,-500.0,0.00019178,2]
[346321776,1734889847405,-500.0,0.00019178,2]
[346321778,1734889847414,-500.0,0.00019178,2]
[346321781,1734889847425,-500.0,0.00019178,2]
[346321782,1734889847434,-500.0,0.00019178,2]
[346321784,1734889847443,-500.0,0.00019178,2]
[346321786,1734889847452,-494.33,0.00019178,2]
[346321788,1734889847462,-508.87,0.00019178,2]
[346321790,1734889847471,-491.96,0.00019178,2]
[346321792,1734889847480,-503.68,0.00019178,2]
[346321794,1734889847490,-4000.0,0.00019178,2]
[346321796,1734889847499,-154.78,0.00019198,2]
[346321798,1734889847508,-194.55588685,0.00019261,2]
[346321800,1734889847517,-194.55588685,0.00019352,2]
[346321801,1734889847526,-1461.32818619,0.00019352,2]
[346321802,1734889847541,-1111.29553686,0.00019352,2]
[346321803,1734889847904,-715.58487973,0.00019352,2]
[346321804,1734889847915,-11036.66369722,0.00019352,2]
[346321805,1734889847925,-194.55588685,0.00019443,2]
[346321806,1734889847934,-7110.01,0.00019451,2]
[346321807,1734889847943,-500.0,0.00019451,2]
[346321808,1734889847953,-500.0,0.00019452,2]
[346321809,1734889847962,-419.609052,0.00019452,2]
[346321810,1734889847971,-1755.063071,0.00019452,2]
[346321811,1734889847981,-430.35,0.00019452,2]
[346321812,1734889847990,-493.1,0.00019452,2]
[346321813,1734889847999,-500.0,0.00019452,2]
[346321814,1734889848008,-153.13,0.00019452,2]
[346321815,1734889848017,-500.0,0.00019452,2]
[346321816,1734889848026,-331.57,0.00019452,2]
[346321817,1734889848035,-500.0,0.00019452,2]
[346321818,1734889848044,-340.69,0.00019452,2]
[346321819,1734889848053,-500.0,0.00019452,2]
[346321820,1734889848063,-397.13118172,0.00019452,2]
[346321821,1734889848072,-500.0,0.00019452,2]
[346321822,1734889848081,-211.10485123,0.00019452,2]
[346321823,1734889848091,-500.0,0.00019452,2]
[346321824,1734889848099,-205.83890861,0.00019452,2]
[346321825,1734889848111,-294.16109139,0.00019452,2]
[346321826,1734889848120,-147.47890861,0.00019452,2]
[346321827,1734889848254,-352.52109139,0.00019452,2]
[346321828,1734889848263,-500.0,0.00019452,2]
[346321829,1734889848273,-500.0,0.00019452,2]
[346321830,1734889848284,-285.83,0.00019452,2]
[346321831,1734889848294,-236.66,0.00019452,2]
[346321832,1734889848303,-566.29,0.00019452,2]
[346321833,1734889848313,-192.61,0.00019452,2]
[346321834,1734889848322,-500.0,0.00019452,2]
[346321835,1734889848331,-500.0,0.00019452,2]
[346321836,1734889848340,-500.0,0.00019452,2]
[346321837,1734889848351,-2866.26,0.00019452,2]
[346321838,1734889848360,-404.24423754,0.00019452,2]
[346321839,1734889848373,-95.75576246,0.00019452,2]
[346321840,1734889848382,-332.98902754,0.00019452,2]
[346321841,1734889848393,-167.01097246,0.00019452,2]
[346321842,1734889848402,-500.0,0.00019452,2]
[346321843,1734889848412,-500.0,0.00019452,2]
[346321844,1734889848421,-500.0,0.00019452,2]
[346321845,1734889848433,-500.0,0.00019452,2]
[346321846,1734889848442,-547.69,0.00019452,2]
[346321847,1734889848451,-500.0,0.00019452,2]
[346321848,1734889848460,-568.87,0.00019452,2]
[346321849,1734889848469,-500.0,0.00019452,2]
[346321850,1734889848478,-234.89,0.00019452,2]
[346321851,1734889848487,-500.0,0.00019452,2]
[346321852,1734889848497,-500.0,0.00019452,2]
[346321853,1734889848506,-512.5,0.00019452,2]
[346321854,1734889848515,-500.0,0.00019452,2]
[346321855,1734889848524,-500.0,0.00019452,2]
[346321856,1734889848533,-165.94,0.00019452,2]
[346321857,1734889848542,-500.0,0.00019452,2]
[346321858,1734889848552,-278.65,0.00019452,2]
[346321859,1734889848561,-568.66,0.00019452,2]
[346321860,1734889848570,-213.51,0.00019452,2]
[346321861,1734889848579,-500.0,0.00019452,2]
[346321862,1734889848592,-500.0,0.00019452,2]
[346321863,1734889848602,-500.0,0.00019452,2]
[346321864,1734889848611,-500.0,0.00019452,2]
[346321865,1734889848620,-424.15,0.00019452,2]
[346321866,1734889848629,-500.0,0.00019452,2]
[346321867,1734889848638,-500.0,0.00019452,2]
[346321868,1734889848647,-500.0,0.00019452,2]
[346321869,1734889848656,-500.0,0.00019452,2]
[346321870,1734889848665,-500.0,0.00019452,2]
[346321871,1734889848674,-500.0,0.00019452,2]
[346321872,1734889848684,-315.3,0.00019452,2]
[346321873,1734889848693,-500.0,0.00019452,2]
[346321874,1734889848703,-388.21325626,0.00019452,2]
[346321875,1734889848713,-305.59,0.00019452,2]
[346321876,1734889848722,-647.7,0.00019452,2]
[346321877,1734889848732,-500.0,0.00019452,2]
[346321878,1734889848740,-500.0,0.00019452,2]
[346321879,1734889848750,-392.47,0.00019452,2]
[346321880,1734889848759,-500.0,0.00019452,2]
[346321881,1734889848767,-500.0,0.00019452,2]
[346321882,1734889848777,-416.22,0.00019452,2]
[346321883,1734889848786,-509.28,0.00019452,2]
[346321884,1734889848795,-640.94,0.00019452,2]
[346321885,1734889848804,-500.0,0.00019452,2]
[346321886,1734889848813,-274.91212176,0.00019452,2]
[346321887,1734889848823,-512.46,0.00019452,2]
[346321888,1734889848832,-500.0,0.00019452,2]
[346321889,1734889848842,-638.62,0.00019452,2]
[346321890,1734889848851,-63.80335374,0.00019452,2]
[346321891,1734889848863,-436.19664626,0.00019452,2]
[346321892,1734889848872,-500.0,0.00019452,2]
[346321893,1734889848881,-500.0,0.00019452,2]
[346321894,1734889848890,-500.0,0.00019452,2]
[346321895,1734889848899,-140.00072509,0.00019452,2]
[346321897,1734890359318,324.96,0.00010137,2]
[346321911,1734891031831,-813.96,0.00016502,2]
[346321912,1734891031842,-186.04,0.00016813,2]
[346321913,1734891031857,-138.92,0.00016813,2]
[346321914,1734891031870,-300.0,0.00017712,2]
[346321915,1734891031881,-18470.3342,0.00017713,2]
[346321916,1734891031894,-61207.99461108,0.00018,2]
[346321917,1734891031906,-11015.77,0.00018101,2]
[346321918,1734891031919,-1000.0,0.00018271,2]
[346321919,1734891031931,-425.07,0.00018337,2]
[346321920,1734891031942,-161.84,0.00018393,30]
[346321921,1734891031953,-2221.0,0.00018422,2]
[346321922,1734891031963,-388.75,0.00018618,2]
[346321923,1734891031974,-501.05,0.00018661,2]
[346321924,1734891031987,-250.0,0.00018727,2]
[346321925,1734891031998,-813.96,0.00018766,2]
[346321926,1734891032010,-508.45,0.00018845,2]
[346321927,1734891032022,-502.93,0.00018904,2]
[346321928,1734891032033,-495.07,0.00018993,2]
[346321929,1734891032045,-10000.0,0.00019,2]
[346321930,1734891032057,-1000.0,0.00019,19]
[346321931,1734891032071,-2190.46121666,0.00019,10]
[346321932,1734891032082,-337.582,0.00019,2]
[346321933,1734891032094,-162.12990575,0.00019078,2]
[346321934,1734891032107,-162.1299057,0.00019133,2]
[346321935,1734891032119,-490.11393279,0.00019178,2]
[346321936,1734891032130,-500.0,0.00019178,2]
[346321937,1734891032141,-500.0,0.00019178,2]
[346321938,1734891032153,-500.0,0.00019178,2]
[346321939,1734891032164,-500.0,0.00019178,2]